Cogmind - Beta 13 @@@ ROGUE MODE // 2024.04.09 @ 05:30:45 Player: scumgirle Result: Self-destructed Performance ------------- Evolutions (1) 500 Regions Visited (5) 1000 Robots Destroyed (25) 125 Value Destroyed (512) 512 Prototype IDs (2) 40 Alien Tech Used (0) 0 Bonus (300) 300 TOTAL SCORE: 2477 Bonus ------- Aligned with FarCom 300 Cogmind --------- Core Integrity 264/400 Matter 276/300 Energy 125/125 System Corruption 0% Temperature Cool (0) Movement Walking (120) Location -8/Mines Parts ------- > --- POWER (1) -------- Light Ion Engine > --- PROPULSION (2) --- Aluminum Leg Improved Aluminum Leg > --- UTILITY (4) ------ Small Storage Unit Visual Processing Unit Targeting Computer > --- WEAPON (2) ------- Beam Cannon Heavy Assault Rifle > --- INVENTORY (8) ---- Flight Unit Visual Processing Unit Sensor Array Utility Shielding Medium Laser Light Assault Rifle Field Lobotomy Kit (5) Peak State ------------ > --- POWER ------------ Light Ion Engine > --- PROPULSION ------- Aluminum Leg Aluminum Leg > --- UTILITY ---------- Small Storage Unit Visual Processing Unit Targeting Computer > --- WEAPON ----------- Heavy Assault Rifle Field Lobotomy Kit > --- INVENTORY -------- Flight Unit Visual Processing Unit Sensor Array Utility Shielding Medium Laser Beam Cannon Light Assault Rifle [Rating: 19] Favorites ----------- Power Light Ion Engine Engine Light Ion Engine Propulsion Aluminum Leg Leg Aluminum Leg Flight Unit Flight Unit Utility Small Storage Unit Device Sensor Array Storage Small Storage Unit Processor Targeting Computer Protection Utility Shielding Weapon Light Assault Rifle Energy Gun Medium Laser Energy Cannon Beam Cannon Ballistic Gun Light Assault Rifle Launcher Grenade Launcher Special Weapon Field Lobotomy Kit Build | -11 -10 -9 -9 -9 -8 ------- Run | Yrd Mat Mat Min Exi Min Slots Evolved 2 | . . 2 . . . Power . | . . . . . . Propulsion . | . . . . . . Utility 2 | . . 2 . . . Weapon . | . . . . . . Parts Attached 34 | 7 5 15 2 3 2 Power 3 | 1 . 2 . . . Engine 3 | 1 . 2 . . . Core . | . . . . . . Reactor . | . . . . . . Propulsion 10 | 2 1 5 1 . 1 Treads . | . . . . . . Leg 8 | 2 1 3 1 . 1 Wheel . | . . . . . . Hover . | . . . . . . Flight 2 | . . 2 . . . Utility 9 | 1 3 3 . 1 1 Device 3 | . . 1 . 1 1 Storage 3 | 1 2 . . . . Processor 2 | . 1 1 . . . Hackware . | . . . . . . Protection 1 | . . 1 . . . Artifact . | . . . . . . Weapon 12 | 3 1 5 1 2 . Energy Gun 2 | 2 . . . . . Energy Cannon 1 | . . . . 1 . Ballistic Gun 7 | 1 1 4 1 . . Ballistic Cannon . | . . . . . . Launcher 1 | . . 1 . . . Special Weapon 1 | . . . . 1 . Impact Weapon . | . . . . . . Slashing Weapon . | . . . . . . Piercing Weapon . | . . . . . . Special Melee Weapon . | . . . . . . Unidentified Prototypes 2 | . . . . 2 . Parts Lost 2 | . . . 2 . . Power . | . . . . . . Propulsion 1 | . . . 1 . . Utility . | . . . . . . Weapon 1 | . . . 1 . . Highest Loss Streak 2 | . . . 2 . . To Critical Strikes . | . . . . . . Average Slot Usage (%) 97 | . 99 98 95 94 97 Engine 11 | . 14 11 11 11 11 Leg 23 | . 28 20 20 22 22 Device 6 | . . 10 11 6 8 Storage 11 | . 14 11 11 11 11 Processor 19 | . 13 22 22 22 22 Energy Gun 1 | . 4 . . . . Energy Cannon 2 | . . . . 4 11 Ballistic Gun 18 | . 23 18 17 17 11 Launcher 1 | . . 3 1 . . Naked Turns . | . . . . . . Heaviest Build 15 | 12 12 15 13 14 15 Greatest Support 23 | 20 20 20 20 20 23 Greatest Overweight (x) 3 | 1 . 3 . . . Average Overweight (x) . | . . . . . . Largest Inventory Capacity 10 | 8 10 8 8 8 8 Average Capacity 7 | 7 7 8 8 8 8 Most Carried 8 | 3 8 8 7 8 8 Average Carried 5 | 1 6 7 5 5 6 Final Capacity 8 | 8 8 8 8 8 8 Final Carried 8 | 2 8 7 5 7 7 Class Distribution -------------------- 53% | Mutant 36% | Scavenger-Mutant 5% | Scavenger-Skirmisher 5% | Skirmisher Dominant Class ---------------- Mutant | -10/Materials Mutant | -9/Materials Scavenger-Mutant | -9/Mines Scavenger-Mutant | -9/Exiles Scavenger-Skirmisher | -8/Mines Resources | -11 -10 -9 -9 -9 -8 ----------- Run | Yrd Mat Mat Min Exi Min Matter Collected 784 | 233 146 273 71 . 61 Remotely . | . . . . . . Salvage Created 544 | . 156 244 84 . 60 Parts 42 | . 11 20 3 . 8 Haulers Intercepted . | . . . . . . Recyclers Shooed . | . . . . . . Parts Field Recycled . | . . . . . . Retrieved Matter . | . . . . . . Parts Self-Destructed . | . . . . . . Prevented . | . . . . . . Kills | -11 -10 -9 -9 -9 -8 ------- Run | Yrd Mat Mat Min Exi Min Combat Hostiles Destroyed 21 | . 6 9 2 . 4 Guns 14 | . 6 6 1 . 1 Cannons 3 | . . . . . 3 AOE 4 | . . 3 1 . . Classes Destroyed 6 | . 3 3 . . . Worker 1 | . . 1 . . . Recycler 1 | . . 1 . . . Watcher 2 | . 1 1 . . . Swarmer 12 | . 4 4 . . 4 Grunt 8 | . 2 4 2 . . Sentry 1 | . . 1 . . . Best Kill Streak 4 | . 3 4 2 . 4 Combat Bots Only 4 | . 3 4 2 . 4 Max Kills in Single Turn 2 | . 1 2 1 . 2 Gunslinging . | . . . . . . Exploded 2 | . . 2 1 . . Melee . | . . . . . . Uniques/NPCs Destroyed . | . . . . . . Combat | -11 -10 -9 -9 -9 -8 -------- Run | Yrd Mat Mat Min Exi Min Hostile Shots Fired 87 | . 33 36 10 . 8 Missed 30 | . 13 13 1 . 3 Damage Taken 636 | . 178 282 137 . 39 Core 143 | . 7 72 44 . 20 Absorbed by Shields . | . . . . . . Core Remaining (%) 98 | 100 97 . . . . Volleys Fired 55 | . 17 25 8 . 5 Largest 2 | . 2 2 2 . 2 Hottest 83 | . 70 53 50 . 83 Shots Fired 103 | . 34 50 9 . 10 Gun 87 | . 34 40 8 . 5 Cannon 5 | . . . . . 5 Launcher 11 | . . 10 1 . . Special . | . . . . . . Kinetic 82 | . 29 40 8 . 5 Thermal 10 | . 5 . . . 5 Explosive 11 | . . 10 1 . . Electromagnetic . | . . . . . . Robot Hit Streak 10 | . 7 10 6 . 6 Robot Miss Streak 3 | . 3 3 1 . 1 Penetration Max . | . . . . . . Secondary Targets 1 | . 1 . . . . Max Gunslinging Chain 1 | . 1 . . . . Shots Hit Robots 55 | . 20 21 8 . 6 Core Hits 41 | . 9 24 4 . 4 Critical Kills . | . . . . . . Critical Parts Destroyed . | . . . . . . Critical Strikes . | . . . . . . Melee Attacks . | . . . . . . Impact . | . . . . . . Slashing . | . . . . . . Piercing . | . . . . . . Sneak Attacks . | . . . . . . Combat Hostiles . | . . . . . . Follow-up Attacks . | . . . . . . Damage Inflicted 1129 | . 235 646 136 . 112 Guns 523 | . 235 192 52 . 44 Cannons 68 | . . . . . 68 Explosions 538 | . . 454 84 . . Melee . | . . . . . . Ramming . | . . . . . . Kinetic 474 | . 186 192 52 . 44 Thermal 117 | . 49 . . . 68 Explosive 538 | . . 454 84 . . Electromagnetic . | . . . . . . Impact . | . . . . . . Slashing . | . . . . . . Piercing . | . . . . . . Highest Corruption . | . . . . . . Average Corruption . | . . . . . . Corruption Purged . | . . . . . . Corruption Blocked . | . . . . . . Overload Shots . | . . . . . . Overflow Damage 8 | . . . 8 . . Projectiles . | . . . . . . Explosions 8 | . . . 8 . . Melee . | . . . . . . Knockbacks . | . . . . . . Impact . | . . . . . . Kinetic . | . . . . . . Secondary . | . . . . . . Self-Inflicted Damage 51 | . . 20 31 . . Shots 3 | . . 2 1 . . Rammed . | . . . . . . Targets Rammed . | . . . . . . Kicked . | . . . . . . Crushed . | . . . . . . Highest Temperature 48 | . 45 18 10 . 48 Average Temperature 16 | . 20 9 5 . 21 Received Heat Transfer 174 | . 30 87 57 . . Siege Activations . | . . . . . . Robots Corrupted . | . . . . . . Combat Hostiles . | . . . . . . Parts Fried . | . . . . . . Impact Corruptions . | . . . . . . Robots Melted . | . . . . . . Combat Hostiles . | . . . . . . Parts Melted 2 | . 1 . . . 1 Heat Transferred 296 | . 148 . . . 148 Parts Sabotaged . | . . . . . . Parts Stolen . | . . . . . . Parts Stripped . | . . . . . . Power Chain Reactions . | . . . . . . Alert | -11 -10 -9 -9 -9 -8 ------- Run | Yrd Mat Mat Min Exi Min Peak Influence 288 | . 202 288 97 . 90 Initial 56 | . . 7 56 . . Average 64 | . 71 120 90 . 4 Maximum Alert Level 1 | . 1 1 . . . Low Security (%) 97 | 100 99 93 100 . 100 Level 1 2 | . . 6 . . . Level 2 . | . . . . . . Level 3 . | . . . . . . Level 4 . | . . . . . . Level 5 . | . . . . . . High Security . | . . . . . . Max Security . | . . . . . . Squads Dispatched . | . . . . . . Investigation . | . . . . . . Extermination . | . . . . . . Reinforcement . | . . . . . . Assault . | . . . . . . Garrison . | . . . . . . Intercept . | . . . . . . Searches Triggered . | . . . . . . Construction Impeded . | . . . . . . Haulers Reinforced . | . . . . . . Active Scanning Responses . | . . . . . . Cargo Convoy Interrupts . | . . . . . . Stealth | -11 -10 -9 -9 -9 -8 --------- Run | Yrd Mat Mat Min Exi Min Distress Signals 5 | . 3 2 . . . Communications Jammed . | . . . . . . Distress Signals . | . . . . . . Times Spotted 32 | . 13 13 2 . 4 Peak Tracking Total 5 | . 4 5 2 . 4 Tactical Retreats 2 | . 2 . . . . Traps | -11 -10 -9 -9 -9 -8 ------- Run | Yrd Mat Mat Min Exi Min Traps Triggered . | . . . . . . Indirectly . | . . . . . . Trap Hack Attempts . | . . . . . . Triggered . | . . . . . . Disarmed . | . . . . . . Reprogrammed . | . . . . . . Reused . | . . . . . . Traps Extracted . | . . . . . . Installed . | . . . . . . Triggered . | . . . . . . Machines | -11 -10 -9 -9 -9 -8 ---------- Run | Yrd Mat Mat Min Exi Min Machines Disabled 1 | . . 1 . . . Max in Single Turn 1 | . . 1 . . . Machines Repaired . | . . . . . . Machines Dismantled . | . . . . . . Machines Sabotaged . | . . . . . . Overloaded Fab Kills . | . . . . . . Hacking | -11 -10 -9 -9 -9 -8 --------- Run | Yrd Mat Mat Min Exi Min Machines Accessed 5 | . 2 3 . . . Terminals 4 | . 2 2 . . . Fabricators . | . . . . . . Repair Stations . | . . . . . . Recycling Units 1 | . . 1 . . . Scanalyzers . | . . . . . . Garrison Access . | . . . . . . Total Hacks 8 | . 4 4 . . . Successful 5 | . 3 2 . . . Failed 3 | . 1 2 . . . Catastrophic . | . . . . . . Database Lockouts . | . . . . . . Manual 2 | . . . . 2 . Terminals 7 | . 4 3 . . . Fabricators . | . . . . . . Repair Stations . | . . . . . . Recycling Units 1 | . . 1 . . . Scanalyzers . | . . . . . . Garrison Access . | . . . . . . Terminal Hacks 4 | . 3 1 . . . Robot Analysis 1 | . . 1 . . . Emergency Access Points 1 | . 1 . . . . Hauler Manifests 1 | . 1 . . . . Zone Layout 1 | . 1 . . . . Fabricator Hacks . | . . . . . . Repair Station Hacks . | . . . . . . Recycling Unit Hacks 1 | . . 1 . . . Report Inventory 1 | . . 1 . . . Scanalyzer . | . . . . . . Garrison Access Hacks . | . . . . . . Unauthorized Hacks . | . . . . . . Terminals . | . . . . . . Fabricators . | . . . . . . Repair Stations . | . . . . . . Recycling Units . | . . . . . . Scanalyzers . | . . . . . . Garrison Access . | . . . . . . Data Cores Recovered . | . . . . . . Used . | . . . . . . Hacking Detections 2 | . 1 1 . . . Full Trace Events . | . . . . . . Feedback Events . | . . . . . . Feedback Blocked . | . . . . . . Robot Schematics Acquired . | . . . . . . Robots Built . | . . . . . . Authchips . | . . . . . . Time . | . . . . . . Total Robot Build Rating . | . . . . . . Part Schematics Acquired . | . . . . . . Parts Built . | . . . . . . Authchips . | . . . . . . Time . | . . . . . . Total Part Build Rating . | . . . . . . Parts Repaired . | . . . . . . Time . | . . . . . . Parts Recycled . | . . . . . . Recycled Matter . | . . . . . . Retrieved Matter . | . . . . . . Retrieved Components . | . . . . . . Parts Scanalyzed . | . . . . . . Part Schematics Acquired . | . . . . . . Parts Damaged . | . . . . . . Bothacking | -11 -10 -9 -9 -9 -8 ------------ Run | Yrd Mat Mat Min Exi Min Used RIF Installer . | . . . . . . Robots Hacked . | . . . . . . Non-combat . | . . . . . . Combat . | . . . . . . Robot Hacks Applied . | . . . . . . Relay Couplers Released . | . . . . . . Fabnet Peak Effective % . | . . . . . . Robots Rewired . | . . . . . . Allies Hacked . | . . . . . . Hacks Repelled . | . . . . . . Allies | -11 -10 -9 -9 -9 -8 -------- Run | Yrd Mat Mat Min Exi Min Total Allies . | . . . . . . Largest Group . | . . . . . . Highest-Rated Group . | . . . . . . Highest-Rated Ally . | . . . . . . Total Orders . | . . . . . . Ally Attacks . | . . . . . . Total Damage . | . . . . . . Kills . | . . . . . . Allies Corrupted . | . . . . . . Allies Melted . | . . . . . . Intel | -11 -10 -9 -9 -9 -8 ------- Run | Yrd Mat Mat Min Exi Min Robot Analysis Total 1 | . . 1 . . . Derelict Logs Recovered . | . . . . . . Drone Launches . | . . . . . . Drone Recoveries . | . . . . . . Exploration | -11 -10 -9 -9 -9 -8 ------------- Run | Yrd Mat Mat Min Exi Min Turns Passed 1927 | 319 429 546 75 293 265 Spaces Moved 1233 | 108 298 352 47 237 191 Core 18 | 16 . 2 . . . Treads . | . . . . . . Legs 1206 | 92 298 341 47 237 191 Wheels . | . . . . . . Hover . | . . . . . . Flight 9 | . . 9 . . . Fastest Speed 50 | 50 120 117 120 120 120 Average Speed 119 | 113 120 121 120 120 120 Slowest Speed 200 | 120 120 200 120 120 120 Overloaded Moves . | . . . . . . Propulsion Burnouts . | . . . . . . Robots Hopped . | . . . . . . Cave-ins Triggered . | . . . . . . Exploration Rate (%) 30 | 8 39 26 15 44 53 Regions Visited 5 Branch Regions 3 Pre-discovered Areas . | . . . . . . Known Exits Taken . | . . . . . . Unknown Exits Taken 5 | 1 1 1 1 1 . Scrap Searched 2 | . . . 1 . 1 Spaces Dug . | . . . . . . Terrain Destroyed 65 | . . 54 11 . . Melee . | . . . . . . Projectile . | . . . . . . AOE 65 | . . 54 11 . . Terrain Rammed . | . . . . . . Walls Destroyed . | . . . . . . Machines Disabled . | . . . . . . Actions | -11 -10 -9 -9 -9 -8 --------- Run | Yrd Mat Mat Min Exi Min Total 1601 | 304 341 432 58 248 218 Wait 217 | 181 7 13 . . 16 Move 1228 | 107 297 351 46 236 191 Hop . | . . . . . . Pick Up 34 | 8 10 11 1 3 1 Fast Attach . | . . . . . . Attach 33 | 7 4 15 2 3 2 Detach 16 | 1 2 7 . 4 2 Swap 1 | . 1 . . . . Drop 17 | . 3 10 1 2 1 Fire 55 | . 17 25 8 . 5 Melee . | . . . . . . Ram . | . . . . . . Kick . | . . . . . . Crush . | . . . . . . Escape Stasis . | . . . . . . Rewire . | . . . . . . Trap . | . . . . . . Miscellaneous . | . . . . . . Route ------- -11/Scrapyard -10/Materials -9/Materials -9/Mines (discovered 2 exits: [*Mat] / *Exi) -9/Exiles -8/Mines History --------- Turn | Location | Event 2 | -11/Scrapyard | Met Revision 17 15 | -11/Scrapyard | Discovered new exit (range 15) 320 | -11/Scrapyard | Entered Materials 321 | -10/Materials | Build established: Mutant 705 | -10/Materials | Discovered new exit (range 14) 749 | -10/Materials | Entered another Materials area 749 | -9/Materials | Evolved 2 slots: Utility x2 1265 | -9/Materials | Discovered new exit (range 17) 1295 | -9/Materials | Entered Mines 1347 | -9/Mines | Discovered new exit (range 4) 1364 | -9/Mines | Deemed a non-threat by the Exiles lab entrance 1365 | -9/Mines | Discovered new exit (range 5) 1370 | -9/Mines | Entered Exiles 1388 | -9/Exiles | Discovered new exit (range 17) 1399 | -9/Exiles | Met 8R-AWN 1420 | -9/Exiles | Met EX-HEX 1459 | -9/Exiles | Met EX-BIN 1472 | -9/Exiles | Aligned with FarCom system 1474 | -9/Exiles | Given EX-Vault access code 1482 | -9/Exiles | Build established: Scavenger-Mutant 1501 | -9/Exiles | Opened EX-Vault 1523 | -9/Exiles | Found Prototype Special Weapon 1532 | -9/Exiles | Found Prototype Device 1533 | -9/Exiles | Identified Supersonic Drone Bay 1538 | -9/Exiles | Identified Field Lobotomy Kit 1563 | -9/Exiles | Warned to stay clear of 0b10 Research branches 1663 | -9/Exiles | Left Exiles lab with Field Lobotomy Kit 1663 | -9/Exiles | Entered Mines 1928 | -8/Mines | Self-destructed Last Messages --------------- 01789_ K-01 Serf collects debris. 01802_ T-07 Excavator is excavating. 01807_ U-05 Engineer lays Concrete. 01808_ Searching scrap... 01808_ Found Heat Sink. 01808_ Found Imp. Aluminum Leg. 01808_ Found Com. Matter Pod. 01808_ Found 29 Matter. 01809_ Acquired 29 matter. 01810_ T-07 Excavator is excavating. 01810_ Acquired Imp. Aluminum Leg. 01813_ Dropped Aluminum Leg. 01833_ U-05 Engineer builds a Wall. 01835_ R-06 Scavenger collects Aluminum Leg. 01903_ C-30 ARC bursts open, deploying its payload. 01903_ S-10 Pest unfolds itself. 01912_ Flight Unit melted. 01912_ S-10 Pest destroyed. 01926_ Acquired 32 matter. Map ----- +----------------------------------------------------+ | ??????????????????? ##????????# #??????# #??????? | | ?????????????????? ??????????# #??????# #??????? | | ?????????????????? ???????????# #??????# #??????# | | ????????????????? ?????## #### ######## #?????## | | ???????????????????????# #?????# | | ??????????????????????# ##########?????# | | ??????????????????# ######??????????????# | | ??????????????????# ?????????????????????# | | ??????????????????### ### ??????????????????????## | | ????????????????????????#????????????????????????# | | ?????????????????????????????????? #?????????????? | | ?????????????????????????????????? #####?????????? | | ?????????????????????????????????? ####??????? | | ?????????????????????????????????? ??????? | | ????????????????????????????????? #?????? | | ????????????????????????????????? #?????? | | ????????????????????????????????? ??????? | | ????????????????????????????????# ???????? | | ???????????????????????????????# ??????#???? | | ?????????????????????????????## #????????# ??? | | ????????????????????????????## #?????????# ### | | ????????????????????????##### #?????????? # | | ????????????????????????# #???????????# # | | ????????????????????????#=## ##???????????# # | | ????????????????????????#[### ##????????????# | | ????????????????????????#@#?## ##???????????##### | | ????????????????????????# #??# ##???????????## ## | | ????????????????????????#=#??# #?????????#### # | | ????????????????????????#*#??# #????????## | | ?????????????????????####%#### ########## # | | ?????????????????????# =[= # | | ?????????????????????# | | ?????????????????????# ################### | | ?????????????????????# #?????????????????## # | | ?????????????????????# #??????????????????## # | | ???????????????????? %" #???????????????????## | | ?????????????????? " #????????????????????# | | ?????????????????########????????????????????## # | | ???????????????????????????????????????????????### | | ?????????????????????????????????????????????????? | | | | | | | | | | | | | | | | | | | | | +----------------------------------------------------+ Best States ------------- Heat Dissipation 28 Energy Generation 10 Energy Capacity 125 Matter Stores 300 Matter Capacity 300 Sight Range 18 Robot Scan Range 14 Terrain Scan Density 10 Evasion (%) 55 Targeting Accuracy 5 Item Schematics ----------------- None Robot Schematics ------------------ None Fabricated ------------ Nothing Alien Tech Used ----------------- None Achievements -------------- None Challenges ------------ None Game ------ Seed SuspensionSignalNukerbomber Manual? 0 Play Time 00:21:53 Cumulative 1.9 hours Start 2024.04.09 @ 05:01:23 End 2024.04.09 @ 05:30:45 Sessions 1 Manual Loads 0 Difficulty Rogue Special Mode None Game No. 7 Rogue 7 Adventurer 0 Explorer 0 Win Type - Total 0 Types 0/0/0/0/0/0/0/0/0 Lore% 4 Gallery% 5 Achievement% 4 Wizard Run 0 Options --------- Layout 1 ASCII 0 Keyboard 1 Movement Numpad Keybinds 0 Fullscreen 1 Font 18/SmallcapsGlow Map View 50x40 Zoom Use 0% Tactical HUD 1 Map Filters NONE Filters NONE Steam 0 RUN: 1cc32dde-196d-4fe1-a70b-d8a906896906